Cogmind - Beta 12 @@@ ROGUE MODE // 2023.07.17 @ 01:19:00 Player: Havoc Result: Destroyed by D-53 Grenadier with Mini Grenade Launcher Performance ------------- Evolutions (0) 0 Regions Visited (2) 400 Robots Destroyed (27) 135 Value Destroyed (671) 671 Prototype IDs (0) 0 Alien Tech Used (0) 0 Bonus (0) 0 TOTAL SCORE: 1206 Bonus ------- None Cogmind --------- Core Integrity 0/250 Matter 300/300 Energy 100/100 System Corruption 0% Temperature Cool (0) Movement Walking (120) Location -10/Mines Parts ------- > --- POWER (1) -------- (None) > --- PROPULSION (2) --- Aluminum Leg Aluminum Leg > --- UTILITY (2) ------ Improved Heat Sink Medium Storage Unit > --- WEAPON (2) ------- Medium Laser > --- INVENTORY (10) --- Light Nuclear Core Improved Heat Sink Light Armor Plating Small Laser Small Laser Light Assault Rifle Peak State ------------ > --- POWER ------------ Ion Engine > --- PROPULSION ------- Aluminum Leg Aluminum Leg > --- UTILITY ---------- Improved Heat Sink Medium Storage Unit > --- WEAPON ----------- Medium Laser Medium Laser > --- INVENTORY -------- Light Nuclear Core Aluminum Leg Improved Heat Sink Small Laser Small Laser Light Assault Rifle [Rating: 10] Favorites ----------- Power Ion Engine Engine Ion Engine Propulsion Aluminum Leg Leg Aluminum Leg Wheel Wheel Utility Medium Storage Unit Device Improved Heat Sink Storage Medium Storage Unit Weapon Medium Laser Energy Gun Medium Laser Ballistic Gun Assault Rifle Build | -11 -10 -10 ------- Run | Jun Mat Min Slots Evolved . | . . . Power . | . . . Propulsion . | . . . Utility . | . . . Weapon . | . . . Parts Attached 17 | 5 10 2 Power 2 | 1 1 . Engine 2 | 1 1 . Core . | . . . Reactor . | . . . Propulsion 6 | 2 2 2 Treads . | . . . Leg 4 | . 2 2 Wheel 2 | 2 . . Hover . | . . . Flight . | . . . Utility 3 | . 3 . Device 2 | . 2 . Storage 1 | . 1 . Processor . | . . . Hackware . | . . . Protection . | . . . Artifact . | . . . Weapon 6 | 2 4 . Energy Gun 3 | . 3 . Energy Cannon . | . . . Ballistic Gun 3 | 2 1 . Ballistic Cannon . | . . . Launcher . | . . . Special Weapon . | . . . Impact Weapon . | . . . Slashing Weapon . | . . . Piercing Weapon . | . . . Special Melee Weapon . | . . . Unidentified Prototypes . | . . . Parts Lost 9 | . 5 4 Power 2 | . 1 1 Propulsion 4 | . 2 2 Utility . | . . . Weapon 3 | . 2 1 Highest Loss Streak 4 | . 4 2 To Critical Strikes . | . . . Average Slot Usage (%) 86 | . 85 90 Engine 12 | . 11 12 Leg 17 | . 16 21 Wheel 5 | . 7 . Device 11 | . 10 14 Storage 13 | . 13 14 Energy Gun 14 | . 10 26 Ballistic Gun 9 | . 12 . Naked Turns . | . . . Heaviest Build 20 | 7 20 20 Greatest Support 20 | 20 20 20 Greatest Overweight (x) 6 | . 5 6 Average Overweight (x) . | . . . Largest Inventory Capacity 10 | 5 10 10 Average Capacity 9 | 5 9 10 Most Carried 8 | 3 8 8 Average Carried 4 | 1 4 7 Final Capacity 10 | 5 10 10 Final Carried 8 | 2 8 6 Class Distribution -------------------- 56% | Scavenger-Mutant 43% | Mutant Dominant Class ---------------- Scavenger-Mutant | -10/Materials Scavenger-Mutant | -10/Mines Resources | -11 -10 -10 ----------- Run | Jun Mat Min Matter Collected 573 | 280 283 10 Remotely . | . . . Salvage Created 902 | 45 781 76 Parts 72 | 2 61 9 Haulers Intercepted 1 | . 1 . Recyclers Shooed . | . . . Parts Field Recycled . | . . . Retrieved Matter . | . . . Parts Self-Destructed . | . . . Prevented . | . . . Kills | -11 -10 -10 ------- Run | Jun Mat Min Combat Hostiles Destroyed 22 | 1 18 3 Guns 22 | 1 18 3 Classes Destroyed 6 | 1 4 1 Worker 1 | . . 1 Hauler 1 | . 1 . Recycler 1 | . 1 . Watcher 2 | . 2 . Swarmer 6 | . 3 3 Grunt 16 | 1 15 . Best Kill Streak 6 | 1 6 4 Combat Bots Only 5 | 1 5 3 Max Kills in Single Turn 2 | 1 2 1 Gunslinging 1 | . 1 . Exploded . | . . . Melee . | . . . Uniques/NPCs Destroyed . | . . . Combat | -11 -10 -10 -------- Run | Jun Mat Min Damage Taken 1223 | 78 772 373 Core 253 | 21 142 90 Absorbed by Shields . | . . . Core Remaining (%) 91 | 91 . . Volleys Fired 86 | 5 72 9 Largest 2 | 2 2 2 Hottest 100 | 40 100 100 Shots Fired 148 | 10 120 18 Gun 148 | 10 120 18 Cannon . | . . . Launcher . | . . . Special . | . . . Kinetic 102 | 10 92 . Thermal 46 | . 28 18 Explosive . | . . . Electromagnetic . | . . . Robot Hit Streak 8 | 3 8 1 Robot Miss Streak 12 | 2 5 12 Penetration Max . | . . . Secondary Targets 5 | . 4 1 Max Gunslinging Chain 1 | . 1 1 Shots Hit Robots 86 | 6 78 2 Core Hits 48 | 2 42 4 Critical Kills . | . . . Critical Parts Destroyed . | . . . Critical Strikes 2 | . 2 . Burn 2 | . 2 . Melee Attacks . | . . . Impact . | . . . Slashing . | . . . Piercing . | . . . Sneak Attacks . | . . . Combat Hostiles . | . . . Follow-up Attacks . | . . . Damage Inflicted 1082 | 96 923 63 Guns 1082 | 96 923 63 Cannons . | . . . Explosions . | . . . Melee . | . . . Ramming . | . . . Kinetic 764 | 96 668 . Thermal 318 | . 255 63 Explosive . | . . . Electromagnetic . | . . . Impact . | . . . Slashing . | . . . Piercing . | . . . Highest Corruption . | . . . Average Corruption . | . . . Corruption Purged . | . . . Corruption Blocked . | . . . Overload Shots . | . . . Overflow Damage . | . . . Projectiles . | . . . Explosions . | . . . Melee . | . . . Knockbacks . | . . . Impact . | . . . Kinetic . | . . . Secondary . | . . . Self-Inflicted Damage . | . . . Shots . | . . . Rammed . | . . . Targets Rammed . | . . . Kicked . | . . . Crushed . | . . . Highest Temperature 9 | . 9 . Average Temperature 5 | . 5 . Received Heat Transfer 453 | 42 411 . Siege Activations . | . . . Robots Corrupted . | . . . Combat Hostiles . | . . . Parts Fried . | . . . Impact Corruptions . | . . . Robots Melted . | . . . Combat Hostiles . | . . . Parts Melted 1 | . . 1 Heat Transferred 1038 | . 853 185 Parts Sabotaged . | . . . Parts Stolen . | . . . Parts Stripped . | . . . Power Chain Reactions . | . . . Missiles Intercepted . | . . . Alert | -11 -10 -10 ------- Run | Jun Mat Min Peak Influence 295 | 20 295 112 Initial 57 | . 13 57 Average 114 | 3 142 72 Maximum Alert Level 1 | . 1 . Low Security (%) 79 | 100 69 100 Level 1 20 | . 30 . Level 2 . | . . . Level 3 . | . . . Level 4 . | . . . Level 5 . | . . . High Security . | . . . Max Security . | . . . Squads Dispatched 6 | . 6 . Investigation 3 | . 3 . Extermination . | . . . Reinforcement 3 | . 3 . Assault . | . . . Garrison . | . . . Intercept . | . . . Searches Triggered . | . . . Construction Impeded . | . . . Haulers Reinforced . | . . . Active Scanning Responses . | . . . Cargo Convoy Interrupts . | . . . Stealth | -11 -10 -10 --------- Run | Jun Mat Min Distress Signals 2 | . 2 . Communications Jammed . | . . . Distress Signals . | . . . Times Spotted 36 | 1 30 5 Peak Tracking Total 3 | 1 3 3 Tactical Retreats . | . . . Traps | -11 -10 -10 ------- Run | Jun Mat Min Traps Triggered 2 | . 2 . Indirectly . | . . . Trap Hack Attempts . | . . . Triggered . | . . . Disarmed . | . . . Reprogrammed . | . . . Reused . | . . . Traps Extracted . | . . . Installed . | . . . Triggered . | . . . Machines | -11 -10 -10 ---------- Run | Jun Mat Min Machines Disabled . | . . . Max in Single Turn . | . . . Machines Repaired . | . . . Machines Sabotaged . | . . . Overloaded Fab Kills . | . . . Hacking | -11 -10 -10 --------- Run | Jun Mat Min Machines Accessed 4 | . 4 . Terminals 3 | . 3 . Fabricators . | . . . Repair Stations . | . . . Recycling Units 1 | . 1 . Scanalyzers . | . . . Garrison Access . | . . . Total Hacks 10 | . 10 . Successful 5 | . 5 . Failed 5 | . 5 . Catastrophic 1 | . 1 . Database Lockouts . | . . . Manual . | . . . Terminals 9 | . 9 . Fabricators . | . . . Repair Stations . | . . . Recycling Units 1 | . 1 . Scanalyzers . | . . . Garrison Access . | . . . Terminal Hacks 5 | . 5 . Alert Level 3 | . 3 . Unreport Threat 1 | . 1 . Locate Traps 1 | . 1 . Fabricator Hacks . | . . . Repair Station Hacks . | . . . Recycling Unit Hacks . | . . . Scanalyzer . | . . . Garrison Access Hacks . | . . . Unauthorized Hacks . | . . . Terminals . | . . . Fabricators . | . . . Repair Stations . | . . . Recycling Units . | . . . Scanalyzers . | . . . Garrison Access . | . . . Data Cores Recovered . | . . . Used . | . . . Hacking Detections 1 | . 1 . Full Trace Events 1 | . 1 . Feedback Events . | . . . Feedback Blocked . | . . . Robot Schematics Acquired . | . . . Robots Built . | . . . Authchips . | . . . Time . | . . . Total Robot Build Rating . | . . . Part Schematics Acquired . | . . . Parts Built . | . . . Authchips . | . . . Time . | . . . Total Part Build Rating . | . . . Parts Repaired . | . . . Time . | . . . Parts Recycled . | . . . Recycled Matter . | . . . Retrieved Matter . | . . . Retrieved Components . | . . . Parts Scanalyzed . | . . . Part Schematics Acquired . | . . . Parts Damaged . | . . . Bothacking | -11 -10 -10 ------------ Run | Jun Mat Min Used RIF Installer . | . . . Robots Hacked . | . . . Non-combat . | . . . Combat . | . . . Robot Hacks Applied . | . . . Relay Couplers Released . | . . . Fabnet Peak Effective % . | . . . Robots Rewired . | . . . Allies Hacked . | . . . Hacks Repelled . | . . . Allies | -11 -10 -10 -------- Run | Jun Mat Min Total Allies . | . . . Largest Group . | . . . Highest-Rated Group . | . . . Highest-Rated Ally . | . . . Total Orders . | . . . Ally Attacks . | . . . Total Damage . | . . . Kills . | . . . Allies Corrupted . | . . . Allies Melted . | . . . Intel | -11 -10 -10 ------- Run | Jun Mat Min Robot Analysis Total . | . . . Derelict Logs Recovered 1 | . . 1 Drone Launches . | . . . Drone Recoveries . | . . . Exploration | -11 -10 -10 ------------- Run | Jun Mat Min Turns Passed 1004 | 85 687 232 Spaces Moved 635 | 81 404 150 Core 52 | 24 18 10 Treads . | . . . Legs 398 | . 258 140 Wheels 185 | 57 128 . Hover . | . . . Flight . | . . . Fastest Speed 50 | 50 80 120 Average Speed 114 | 71 115 135 Slowest Speed 350 | 80 300 350 Overloaded Moves . | . . . Propulsion Burnouts . | . . . Robots Hopped . | . . . Cave-ins Triggered . | . . . Exploration Rate (%) 33 | 7 65 28 Regions Visited 2 Branch Regions 1 Pre-discovered Areas . | . . . Known Exits Taken . | . . . Unknown Exits Taken 2 | 1 1 . Scrap Searched . | . . . Spaces Dug . | . . . Terrain Destroyed . | . . . Melee . | . . . Projectile . | . . . AOE . | . . . Terrain Rammed . | . . . Walls Destroyed . | . . . Machines Disabled . | . . . Actions | -11 -10 -10 --------- Run | Jun Mat Min Total 771 | 98 512 161 Wait 13 | 1 12 . Move 633 | 80 403 150 Hop . | . . . Pick Up 20 | 7 13 . Fast Attach . | . . . Attach 16 | 5 9 2 Detach 2 | . 2 . Swap 1 | . 1 . Drop . | . . . Fire 86 | 5 72 9 Melee . | . . . Ram . | . . . Kick . | . . . Crush . | . . . Escape Stasis . | . . . Rewire . | . . . Trap . | . . . Miscellaneous . | . . . Route ------- -11/Junkyard -10/Materials (discovered 2 exits: [*Mat] / [*Min]) -10/Mines (discovered 1 exit: [*Mat]) History --------- Turn | Location | Event 2 | -11/Junkyard | Met Revision 17 53 | -11/Junkyard | Discovered new exit (range 8) 86 | -11/Junkyard | Entered Materials 257 | -10/Materials | Discovered new exit (range 16) 290 | -10/Materials | Core integrity fell below 50% 302 | -10/Materials | Build established: Mutant 318 | -10/Materials | Lost 4 parts (2n2w) 667 | -10/Materials | Build established: Scavenger-Mutant 756 | -10/Materials | Discovered new exit (range 13) 773 | -10/Materials | Entered Mines 824 | -10/Mines | Discovered new exit (range 14) 963 | -10/Mines | Assembled infested the area 974 | -10/Mines | Core integrity fell below 20% 1005 | -10/Mines | Destroyed by D-53 Grenadier with Mini Grenade Launcher Last Messages --------------- 00925_ K-01 Serf destroyed. 00926_ K-01 Serf collects debris. 00931_ Aluminum Leg destroyed. 00938_ R-06 Scavenger collects Med. Matter Pod. 00938_ S-10 Pest destroyed. 00940_ R-06 Scavenger collects Flight Unit. 00943_ R-06 Scavenger collects Lgt. Ion Engine. 00953_ R-06 Scavenger collects Lgt. Assault Rifle. 00957_ R-06 Scavenger collects Flight Unit. 00963_ ALERT: Infestation in the mines, dispatching Demolisher response squad. 00973_ Acquired 1 matter. 00973_ C-30 ARC bursts open, deploying its payload. 00973_ D-53 Grenadier unfolds itself. 00975_ Med. Laser destroyed. 00981_ Ion Engine destroyed. 00982_ The unstable cave ceiling collapses. 00988_ K-01 Serf destroyed. 00991_ Acquired 9 matter. 00992_ The unstable cave ceiling collapses. Map ----- +----------------------------------------------------+ | ???????## "%?????????????????????? | | ???##### #?????????????????????? | | ??## #?????????????????????? | | ### ##????????????????????? | | #????????????????????? | | * #????????????????????? | | ! ##???????????????????? | | #???????????????????? | | ##???????????????????? | | ## [ #???????????????????? | | ??### #???????????????????? | | ??????# # ##???????????????????? | | ??????## #???????????????????? | | ??????# ##??????????????????? | | ???????# #??####????????????? | | ???????## #### #########????? | | ????????## # ## ##???? | | ?????????## ## #???? | | ?????????# ## #???? | | ?????????## % d ##???? | | ??????????###### ### #????? | | ???????????????###?## #????? | | ?????????###???????## ######????? | | ????????## ##??????# ##????????? | | ????????# #??????# #????????? | | ????????? ##?????# @##???????? | | ?????????# #?????## ##??????? | | ????????## #??????### ##?????? | | ????????# ##???????## ##????? | | ???????## #????????## #????? | | ???????# ##???????## #????? | | ???????# ######?## ##????? | | ??????## ### ##?????? | | ?????## ##??????? | | ?????# ##???????? | | ?????# ## ##????????? | | ?????# ###### ###?????????? | | ?????# ##???## ##???????????? | | ????## ##???# ##????????????? | | ???## ##??# #?????????????? | | ???# #??## ##?????????????? | | ???## #???####??????????????? | | ????## ##?????????????????????? | | ?????## ###??????????????????????? | | ??????## #????????????????????????? | | ???????# ########## #?????????? | | ???????# < #?????????? | | ???????# #??????????? | | ???????############# #???????????? | | ???????????????????????????????????? | +----------------------------------------------------+ Best States ------------- Heat Dissipation 39 Energy Generation 10 Energy Capacity 250 Matter Stores 300 Matter Capacity 300 Sight Range 16 Terrain Scan Density 10 Evasion (%) 55 Item Schematics ----------------- None Robot Schematics ------------------ None Fabricated ------------ Nothing Alien Tech Used ----------------- None Achievements -------------- Storm Trooper Challenges ------------ None Game ------ Seed ShockPowerStorage Manual? 0 Play Time 00:10:28 Cumulative 0.7 hours Start 2023.07.13 @ 22:46:20 End 2023.07.17 @ 01:19:00 Sessions 2 Manual Loads 0 Difficulty Rogue Special Mode None Game No. 3 Rogue 1 Adventurer 2 Explorer 0 Win Type - Total 0 Types 0/0/0/0/0/0/0/0/0 Lore% 1 Gallery% 3 Achievement% 5 Wizard Run 0 Options --------- ASCII 0 Keyboard 1 Movement Numpad Keybinds 0 Fullscreen 1 Font 18/SmallcapsGlow Map View 76x50 Tactical HUD 1 Map Filters NONE Filters NONE Steam 1 RUN: 9823bc29-f56d-41e3-bb3c-65d7c367ed57